fUSD/lending_fUSD_20251123
["ID","MTS","AMOUNT","RATE_DAILY","PERIOD"]
[394746133,1763926241198,-515.93910646,0.00038356,8]
[394746135,1763926241207,-500.0,0.00038356,8]
[394746137,1763926241216,-500.0,0.00038356,8]
[394746139,1763926241225,-500.0,0.00038356,8]
[394746141,1763926241238,-542.96,0.00038356,8]
[394746143,1763926241247,-500.0,0.00038356,8]
[394746145,1763926241256,-500.0,0.00038356,8]
[394746147,1763926241265,-500.0,0.00038356,8]
[394746149,1763926241275,-500.0,0.00038356,8]
[394746151,1763926241284,-744.71,0.00038356,8]
[394746153,1763926241292,-500.0,0.00038356,8]
[394746155,1763926241301,-500.0,0.00038356,8]
[394746156,1763926241311,-869.16,0.00038356,8]
[394746159,1763926241321,-500.0,0.00038356,8]
[394746161,1763926241331,-510.17,0.00038356,8]
[394746162,1763926241340,-515.88154822,0.00038356,8]
[394746165,1763926241349,-500.0,0.00038356,8]
[394746166,1763926241358,-500.0,0.00038356,8]
[394746168,1763926241368,-491.13279215,0.00038356,8]
[394746170,1763926241377,-500.0,0.00038356,8]
[394746172,1763926241386,-500.0,0.00038356,8]
[394746174,1763926241395,-500.0,0.00038356,8]
[394746176,1763926241404,-500.0,0.00038356,8]
[394746178,1763926241418,-500.0,0.00038356,8]
[394746180,1763926241427,-567.97,0.00038356,8]
[394746182,1763926241437,-500.0,0.00038356,8]
[394746184,1763926241447,-500.0,0.00038356,8]
[394746187,1763926241457,-500.0,0.00038356,8]
[394746189,1763926241467,-834.31,0.00038356,8]
[394746191,1763926241476,-500.0,0.00038356,8]
[394746193,1763926241487,-488.71560557,0.00038356,8]
[394746195,1763926241496,-500.0,0.00038356,8]
[394746197,1763926241506,-599.68,0.00038356,8]
[394746199,1763926241515,-1007.37396773,0.00038356,120]
[394746200,1763926241525,-441.51678871,0.00038356,8]
[394746203,1763926241535,-500.0,0.00038356,8]
[394746205,1763926241543,-526.98,0.00038356,8]
[394746207,1763926241553,-500.0,0.00038356,8]
[394746209,1763926241562,-500.0,0.00038356,8]
[394746210,1763926241571,-500.0,0.00038356,8]
[394746212,1763926241580,-595.37,0.00038356,8]
[394746214,1763926241589,-641.01123465,0.00038356,8]
[394746217,1763926241600,-500.0,0.00038356,8]
[394746218,1763926241610,-542.88,0.00038356,8]
[394746220,1763926241619,-501.57,0.00038356,8]
[394746222,1763926241628,-474.6304201,0.00038356,8]
[394746224,1763926241637,-500.0,0.00038356,8]
[394746226,1763926241646,-500.0,0.00038356,8]
[394746228,1763926241655,-500.0,0.00038356,8]
[394746230,1763926241664,-2577.2252014,0.00038356,2]
[394746232,1763926241673,-500.0,0.00038356,8]
[394746234,1763926241683,-500.0,0.00038356,8]
[394746236,1763926241691,-297.0783334,0.00038356,8]
[394746238,1763926241701,-500.0,0.00038356,8]
[394746240,1763926241710,-500.0,0.00038356,8]
[394746242,1763926241719,-500.0,0.00038356,8]
[394746244,1763926241728,-500.0,0.00038356,8]
[394746246,1763926241738,-500.0,0.00038356,8]
[394746248,1763926241747,-500.0,0.00038356,8]
[394746250,1763926241756,-500.0,0.00038356,8]
[394746252,1763926241766,-500.0,0.00038356,8]
[394746255,1763926241776,-500.0,0.00038356,8]
[394746256,1763926241788,-588.95,0.00038356,8]
[394746257,1763926241797,-500.0,0.00038356,8]
[394746258,1763926241806,-646.44297222,0.00038356,8]
[394746259,1763926241815,-500.0,0.00038356,8]
[394746260,1763926241825,-500.0,0.00038356,8]
[394746261,1763926241834,-515.44,0.00038356,8]
[394746262,1763926241843,-500.0,0.00038356,8]
[394746263,1763926241852,-500.0,0.00038356,8]
[394746264,1763926241861,-1219.96,0.00038356,8]
[394746265,1763926241871,-500.0,0.00038356,8]
[394746266,1763926241880,-500.0,0.00038356,8]
[394746267,1763926241890,-500.0,0.00038356,8]
[394746268,1763926241900,-500.0,0.00038356,8]
[394746269,1763926241910,-500.0,0.00038356,8]
[394746270,1763926241920,-500.0,0.00038356,8]
[394746271,1763926241930,-619.48,0.00038356,8]
[394746272,1763926241941,-241.17889824,0.00038356,8]
[394746273,1763926241950,-500.0,0.00038356,8]
[394746274,1763926241960,-1000.0,0.00038356,8]
[394746275,1763926241969,-660.2,0.00038356,8]
[394746276,1763926241979,-1078.23,0.00038356,8]
[394746277,1763926241988,-635.36,0.00038356,8]
[394746278,1763926241997,-500.0,0.00038356,8]
[394746279,1763926242008,-500.0,0.00038356,8]
[394746280,1763926242017,-500.0,0.00038356,8]
[394746281,1763926242027,-500.0,0.00038356,8]
[394746282,1763926242036,-423.85587627,0.00038356,8]
[394746283,1763926242045,-575.32,0.00038356,8]
[394746284,1763926242055,-500.0,0.00038356,8]
[394746285,1763926242064,-500.0,0.00038356,8]
[394746286,1763926242073,-500.0,0.00038356,8]
[394746287,1763926242083,-500.0,0.00038356,8]
[394746288,1763926242092,-500.0,0.00038356,8]
[394746289,1763926242102,-500.0,0.00038356,8]
[394746290,1763926242111,-500.0,0.00038356,8]
[394746291,1763926242120,-500.0,0.00038356,8]
[394746292,1763926242130,-616.31,0.00038356,8]
[394746293,1763926242139,-500.0,0.00038356,8]
[394746294,1763926242149,-557.35,0.00038356,8]
[394746295,1763926242158,-566.21,0.00038356,8]
[394746297,1763926242167,-271.08756694,0.00038356,8]
[394746299,1763926242176,-500.0,0.00038356,8]
[394746301,1763926242186,-500.0,0.00038356,8]
[394746303,1763926242195,-500.0,0.00038356,8]
[394746305,1763926242204,-500.0,0.00038356,8]
[394746307,1763926242213,-500.0,0.00038356,8]
[394746308,1763926242222,-500.0,0.00038356,8]
[394746309,1763926242231,-500.0,0.00038356,8]
[394746310,1763926242240,-500.0,0.00038356,8]
[394746311,1763926242249,-533.88,0.00038356,8]
[394746312,1763926242259,-538.38,0.00038356,8]
[394746313,1763926242269,-505.71324314,0.00038356,8]
[394746314,1763926242278,-500.0,0.00038356,8]
[394746315,1763926242288,-540.1,0.00038356,8]
[394746316,1763926242298,-500.0,0.00038356,8]
[394746317,1763926242308,-500.0,0.00038356,8]
[394746318,1763926242318,-597.74,0.00038356,8]
[394746319,1763926242327,-544.18,0.00038356,8]
[394746320,1763926242336,-500.0,0.00038356,8]
[394746321,1763926242346,-500.0,0.00038356,8]
[394746322,1763926242357,-500.0,0.00038356,8]
[394746323,1763926242367,-502.05,0.00038356,8]
[394746324,1763926242377,-500.0,0.00038356,8]
[394746325,1763926242386,-612.89,0.00038356,8]
[394746326,1763926242395,-500.0,0.00038356,8]
[394746327,1763926242409,-500.0,0.00038356,8]
[394746328,1763926242419,-542.3,0.00038356,8]
[394746329,1763926242428,-500.0,0.00038356,8]
[394746330,1763926242437,-673.75,0.00038356,8]
[394746331,1763926242447,-500.0,0.00038356,8]
[394746332,1763926242456,-598.59,0.00038356,8]
[394746333,1763926242466,-646.05,0.00038356,8]
[394746334,1763926242475,-529.52,0.00038356,8]
[394746335,1763926242485,-604.71,0.00038356,8]
[394746336,1763926242494,-500.0,0.00038356,8]
[394746337,1763926242503,-919.68,0.00038356,8]
[394746338,1763926242512,-363.51,0.00038356,14]
[394746339,1763926242521,-465.62069477,0.00038356,8]
[394746340,1763926242530,-500.0,0.00038356,8]
[394746341,1763926242540,-500.0,0.00038356,8]
[394746342,1763926242549,-500.0,0.00038356,8]
[394746343,1763926242559,-500.0,0.00038356,8]
[394746344,1763926242569,-500.0,0.00038356,8]
[394746345,1763926242578,-500.0,0.00038356,8]
[394746346,1763926242587,-500.0,0.00038356,8]
[394746347,1763926242596,-500.0,0.00038356,8]
[394746348,1763926242605,-500.0,0.00038356,8]
[394746349,1763926242614,-520.20150336,0.00038356,8]
[394746350,1763926242624,-500.0,0.00038356,8]
[394746351,1763926242634,-500.0,0.00038356,8]
[394746352,1763926242643,-500.0,0.00038356,8]
[394746353,1763926242652,-500.0,0.00038356,8]
[394746354,1763926242661,-500.0,0.00038356,8]
[394746355,1763926242671,-533.78,0.00038356,8]
[394746356,1763926242679,-500.0,0.00038356,8]
[394746358,1763926242688,-500.0,0.00038356,8]
[394746360,1763926242697,-506.12,0.00038356,8]
[394746361,1763926242705,-500.0,0.00038356,8]
[394746362,1763926242715,-500.0,0.00038356,8]
[394746363,1763926242724,-589.94,0.00038356,8]
[394746364,1763926242733,-500.0,0.00038356,8]
[394746365,1763926242743,-503.0908467,0.00038356,8]
[394746366,1763926242752,-522.75,0.00038356,8]
[394746367,1763926242761,-500.0,0.00038356,8]
[394746368,1763926242770,-500.0,0.00038356,8]
[394746369,1763926242779,-500.0,0.00038356,8]
[394746370,1763926242788,-500.0,0.00038356,8]
[394746371,1763926242797,-707.26,0.00038356,8]
[394746372,1763926242806,-500.0,0.00038356,8]
[394746373,1763926242815,-500.0,0.00038356,8]
[394746374,1763926242824,-504.33427885,0.00038356,8]
[394746375,1763926242833,-500.0,0.00038356,8]
[394746376,1763926242842,-500.0,0.00038356,8]
[394746377,1763926242851,-500.0,0.00038356,8]
[394746378,1763926242860,-500.0,0.00038356,8]
[394746379,1763926242869,-500.0,0.00038356,8]
[394746380,1763926242879,-500.0,0.00038356,8]
[394746381,1763926242888,-500.0,0.00038356,8]
[394746382,1763926242897,-544.9,0.00038356,8]
[394746383,1763926242906,-504.55452204,0.00038356,8]
[394746384,1763926242916,-500.0,0.00038356,8]
[394746385,1763926242925,-500.0,0.00038356,8]
[394746386,1763926242934,-500.0,0.00038356,8]
[394746387,1763926242943,-500.0,0.00038356,8]
[394746388,1763926242952,-214.56524991,0.00038356,8]
[394746389,1763926242961,-500.0,0.00038356,8]
[394746390,1763926242970,-500.0,0.00038356,8]
[394746391,1763926242979,-623.64,0.00038356,8]
[394746392,1763926242989,-500.0,0.00038356,8]
[394746393,1763926242999,-500.0,0.00038356,8]
[394746395,1763926243008,-500.0,0.00038356,8]
[394746396,1763926243018,-500.0,0.00038356,8]
[394746397,1763926243028,-500.0,0.00038356,8]
[394746398,1763926243038,-500.0,0.00038356,8]
[394746399,1763926243048,-500.0,0.00038356,8]
[394746400,1763926243057,-500.0,0.00038356,8]
[394746401,1763926243067,-500.0,0.00038356,8]
[394746402,1763926243077,-500.0,0.00038356,8]
[394746403,1763926243086,-500.0,0.00038356,8]
[394746405,1763926243095,-525.94314541,0.00038356,8]
[394746406,1763926243106,-727.2,0.00038356,8]
[394746407,1763926243115,-318.41526136,0.00038356,8]
[394746408,1763926243124,-500.0,0.00038356,8]
[394746409,1763926243135,-662.55,0.00038356,8]
[394746410,1763926243145,-500.0,0.00038356,8]
[394746411,1763926243155,-563.73,0.00038356,8]
[394746412,1763926243164,-500.0,0.00038356,8]
[394746413,1763926243174,-500.0,0.00038356,8]
[394746414,1763926243183,-500.0,0.00038356,8]
[394746415,1763926243192,-500.0,0.00038356,8]
[394746416,1763926243202,-500.0,0.00038356,8]
[394746417,1763926243211,-182.43521127,0.00038356,8]
[394746418,1763926243220,-500.0,0.00038356,8]
[394746419,1763926243229,-500.0,0.00038356,8]
[394746420,1763926243238,-500.0,0.00038356,8]
[394746421,1763926243247,-500.0,0.00038356,8]
[394746422,1763926243256,-500.0,0.00038356,8]
[394746423,1763926243266,-500.0,0.00038356,8]
[394746424,1763926243276,-500.0,0.00038356,8]
[394746425,1763926243286,-500.0,0.00038356,8]
[394746426,1763926243295,-500.0,0.00038356,8]
[394746427,1763926243304,-517.18835265,0.00038356,8]
[394746428,1763926243314,-500.0,0.00038356,8]
[394746429,1763926243323,-500.0,0.00038356,8]
[394746430,1763926243332,-542.43,0.00038356,8]
[394746431,1763926243342,-764.21,0.00038356,8]
[394746432,1763926243351,-500.0,0.00038356,8]
[394746433,1763926243362,-500.0,0.00038356,8]
[394746434,1763926243371,-806.43,0.00038356,8]
[394746435,1763926243380,-500.0,0.00038356,8]
[394746436,1763926243390,-627.09,0.00038356,8]
[394746437,1763926243399,-158.16080699,0.00038356,8]
[394746438,1763926243411,-300.0,0.00038356,2]
[394746439,1763926243421,-500.0,0.00038356,8]
[394746440,1763926243430,-500.0,0.00038356,8]
[394746441,1763926243439,-500.0,0.00038356,8]
[394746442,1763926243448,-500.0,0.00038356,8]
[394746443,1763926243458,-500.0,0.00038356,8]
[394746444,1763926243472,-500.0,0.00038356,8]
[394746445,1763926243484,-838.32,0.00038356,8]
[394746446,1763926243498,-500.0,0.00038356,8]
[394746447,1763926243511,-500.0,0.00038356,8]
[394746448,1763926243523,-500.0,0.00038356,8]
[394746449,1763926243534,-500.0,0.00038356,8]
[394746450,1763926243544,-500.0,0.00038356,8]
[394746451,1763926243555,-417.21227023,0.00038356,8]
[394746452,1763926243566,-500.0,0.00038356,8]
[394746453,1763926243579,-500.0,0.00038356,8]
[394746454,1763926243591,-500.0,0.00038356,8]
[394746455,1763926243602,-500.0,0.00038356,8]
[394746456,1763926243613,-500.0,0.00038356,8]
[394746457,1763926243625,-896.7,0.00038356,8]
[394746458,1763926243636,-500.0,0.00038356,8]
[394746459,1763926243647,-500.0,0.00038356,8]
[394746460,1763926243659,-500.0,0.00038356,8]
[394746461,1763926243671,-500.25,0.00038356,8]
[394746462,1763926243682,-500.0,0.00038356,8]
[394746463,1763926243693,-500.0,0.00038356,8]
[394746464,1763926243705,-500.0,0.00038356,8]
[394746465,1763926243716,-500.0,0.00038356,8]
[394746466,1763926243726,-500.0,0.00038356,8]
[394746467,1763926243736,-500.0,0.00038356,8]
[394746468,1763926243748,-500.0,0.00038356,8]
[394746469,1763926243760,-500.0,0.00038356,8]
[394746470,1763926243772,-500.16,0.00038356,8]
[394746471,1763926243782,-500.0,0.00038356,8]
[394746472,1763926243794,-500.0,0.00038356,8]
[394746473,1763926243806,-500.0,0.00038356,8]
[394746474,1763926243818,-500.0,0.00038356,8]
[394746475,1763926243829,-500.0,0.00038356,8]
[394746476,1763926243841,-500.0,0.00038356,8]
[394746477,1763926243852,-500.0,0.00038356,8]
[394746478,1763926243863,-500.0,0.00038356,8]
[394746479,1763926243876,-500.0,0.00038356,8]
[394746480,1763926243887,-500.0,0.00038356,8]
[394746481,1763926243898,-288.22134738,0.00038356,8]
[394746482,1763926243912,-500.0,0.00038356,8]
[394746483,1763926243924,-500.0,0.00038356,8]
[394746484,1763926243938,-520.9,0.00038356,8]
[394746485,1763926243949,-500.0,0.00038356,8]
[394746486,1763926243962,-1202.94,0.00038356,8]
[394746487,1763926243974,-500.0,0.00038356,8]
[394746488,1763926243988,-500.0,0.00038356,8]
[394746489,1763926244000,-573.54,0.00038356,8]
[394746490,1763926244015,-500.0,0.00038356,8]
[394746491,1763926244028,-500.0,0.00038356,8]
[394746492,1763926244041,-625.47,0.00038356,8]
[394746493,1763926244054,-594.95,0.00038356,8]
[394746494,1763926244069,-500.0,0.00038356,8]
[394746495,1763926244081,-500.0,0.00038356,8]
[394746496,1763926244093,-500.0,0.00038356,8]
[394746497,1763926244105,-500.0,0.00038356,8]
[394746498,1763926244117,-500.0,0.00038356,8]
[394746499,1763926244130,-500.0,0.00038356,8]
[394746500,1763926244141,-245.17629852,0.00038356,8]
[394746501,1763926244152,-500.0,0.00038356,8]
[394746502,1763926244162,-500.0,0.00038356,8]
[394746503,1763926244174,-500.0,0.00038356,8]
[394746504,1763926244185,-500.0,0.00038356,8]
[394746505,1763926244198,-500.0,0.00038356,8]
[394746506,1763926244212,-368.53461531,0.00038356,8]
[394746507,1763926244225,-500.0,0.00038356,8]
[394746508,1763926244235,-500.0,0.00038356,8]
[394746509,1763926244245,-500.0,0.00038356,8]
[394746510,1763926244256,-500.0,0.00038356,8]
[394746511,1763926244267,-500.0,0.00038356,8]
[394746512,1763926244278,-500.0,0.00038356,8]
[394746513,1763926244288,-5279.52167196,0.00038356,2]
[394746514,1763926244355,-3794.37705144,0.00038356,2]
[394746515,1763926244366,-500.0,0.00038356,8]
[394746516,1763926244376,-500.0,0.00038356,8]
[394746517,1763926244392,-753.16,0.00038356,8]
[394746518,1763926244403,-500.0,0.00038356,8]
[394746519,1763926244420,-500.0,0.00038356,8]
[394746520,1763926244430,-500.0,0.00038356,8]
[394746521,1763926244441,-477.18750397,0.00038356,8]
[394746522,1763926244452,-548.75,0.00038356,8]
[394746523,1763926244465,-500.0,0.00038356,8]
[394746524,1763926244476,-500.0,0.00038356,8]
[394746525,1763926244487,-500.0,0.00038356,8]
[394746526,1763926244498,-682.29,0.00038356,8]
[394746527,1763926244510,-500.0,0.00038356,8]
[394746528,1763926244520,-500.0,0.00038356,8]
[394746529,1763926244531,-500.0,0.00038356,8]
[394746530,1763926244542,-500.0,0.00038356,8]
[394746531,1763926244553,-503.34759032,0.00038356,8]
[394746532,1763926244565,-500.0,0.00038356,8]
[394746533,1763926244576,-500.0,0.00038356,8]
[394746534,1763926244587,-500.0,0.00038356,8]
[394746535,1763926244599,-500.0,0.00038356,8]
[394746536,1763926244610,-434.87553478,0.00038356,8]
[394746537,1763926244621,-500.0,0.00038356,8]
[394746538,1763926244632,-109.73845144,0.00038356,8]
[394746539,1763926245098,-567.11154856,0.00038356,8]
[394746540,1763926245110,-497.29262629,0.00038356,8]
[394746541,1763926245124,-7.16737371,0.00038356,8]
[394746542,1763926245134,-374.52328947,0.00038356,8]
[394746543,1763926245145,-500.0,0.00038356,8]
[394746544,1763926245157,-500.0,0.00038356,8]
[394746545,1763926245167,-500.0,0.00038356,8]
[394746546,1763926245178,-500.0,0.00038356,8]
[394746547,1763926245190,-500.0,0.00038356,8]
[394746548,1763926245201,-500.0,0.00038356,8]
[394746549,1763926245211,-500.0,0.00038356,8]
[394746550,1763926245222,-530.46700135,0.00038356,8]
[394746551,1763926245233,-500.0,0.00038356,8]
[394746552,1763926245244,-919.13,0.00038356,8]
[394746553,1763926245255,-500.0,0.00038356,8]
[394746554,1763926245265,-500.0,0.00038356,8]
[394746555,1763926245276,-209.88935581,0.00038356,8]
[394746556,1763926245287,-500.0,0.00038356,8]
[394746557,1763926245298,-533.48984924,0.00038356,8]
[394746558,1763926245310,-744.02,0.00038356,8]
[394746559,1763926245321,-500.0,0.00038356,8]
[394746560,1763926245332,-500.0,0.00038356,8]
[394746561,1763926245344,-500.0,0.00038356,8]
[394746562,1763926245355,-500.0,0.00038356,8]
[394746563,1763926245366,-500.0,0.00038356,8]
[394746564,1763926245377,-500.0,0.00038356,8]
[394746565,1763926245388,-500.0,0.00038356,8]
[394746566,1763926245399,-500.0,0.00038356,8]
[394746567,1763926245411,-500.0,0.00038356,2]
[394746568,1763926245423,-500.0,0.00038356,8]
[394746569,1763926245434,-521.93,0.00038356,8]
[394746570,1763926245445,-500.0,0.00038356,8]
[394746571,1763926245458,-625.57887648,0.00038356,8]
[394746572,1763926245468,-506.55,0.00038356,8]
[394746573,1763926245479,-571.44,0.00038356,8]
[394746574,1763926245492,-500.0,0.00038356,8]
[394746575,1763926245503,-500.0,0.00038356,8]
[394746576,1763926245514,-830.0,0.00038356,7]
[394746577,1763926245525,-830.0,0.00038356,7]
[394746578,1763926245535,-500.0,0.00038356,8]
[394746579,1763926245545,-500.0,0.00038356,8]
[394746580,1763926245557,-500.0,0.00038356,8]
[394746581,1763926245568,-500.0,0.00038356,8]
[394746582,1763926245578,-500.0,0.00038356,8]
[394746583,1763926245589,-500.0,0.00038356,8]
[394746584,1763926245600,-767.22,0.00038356,8]
[394746585,1763926245611,-500.0,0.00038356,8]
[394746586,1763926245622,-500.0,0.00038356,8]
[394746587,1763926245633,-500.0,0.00038356,8]
[394746588,1763926245644,-500.0,0.00038356,8]
[394746589,1763926245654,-96.12575394,0.00038356,8]
[394746590,1763926245673,-403.87424606,0.00038356,8]
[394746591,1763926245684,-500.0,0.00038356,8]
[394746592,1763926245695,-289.92575394,0.00038356,8]
[394746593,1763926245707,-210.07424606,0.00038356,8]
[394746594,1763926245718,-500.0,0.00038356,8]
[394746595,1763926245728,-500.0,0.00038356,8]
[394746596,1763926245739,-500.0,0.00038356,8]
[394746597,1763926245750,-500.0,0.00038356,8]
[394746598,1763926245760,-500.0,0.00038356,8]
[394746599,1763926245770,-639.53,0.00038356,8]
[394746600,1763926245780,-362.83533682,0.00038356,8]
[394746601,1763926245791,-150.05497995,0.00038356,8]
[394746602,1763926245803,-349.94502005,0.00038356,8]
[394746603,1763926245813,-500.0,0.00038356,8]
[394746604,1763926245823,-253.92986637,0.00038356,8]
[394746605,1763926245853,-167.87552953,0.00038356,8]
[394746606,1763926245863,-600.0,0.00038356,8]
[394746607,1763926245874,-500.0,0.00038356,8]
[394746608,1763926245884,-500.0,0.00038356,8]
[394746609,1763926245895,-500.0,0.00038356,8]
[394746610,1763926245905,-500.0,0.00038356,8]
[394746611,1763926245916,-564.83,0.00038356,8]
[394746612,1763926245926,-578.71648474,0.00038356,8]
[394746613,1763926245937,-76.30492914,0.00038356,8]
[394746614,1763926245950,-423.69507086,0.00038356,8]
[394746615,1763926245960,-500.0,0.00038356,8]
[394746616,1763926245970,-500.0,0.00038356,8]
[394746617,1763926245981,-735.54,0.00038356,8]
[394746618,1763926245992,-500.0,0.00038356,8]
[394746619,1763926246003,-500.0,0.00038356,8]
[394746620,1763926246013,-516.08,0.00038356,8]
[394746621,1763926246024,-500.0,0.00038356,8]
[394746622,1763926246034,-500.0,0.00038356,8]
[394746623,1763926246045,-603.16,0.00038356,8]
[394746624,1763926246056,-599.08,0.00038356,8]
[394746625,1763926246067,-4291.77835834,0.00038356,8]
[394746703,1763926247031,-508.0,0.00029527,2]
[394746705,1763926247043,-264.77845344,0.00037014,2]
[394746707,1763926247053,-1291.56923356,0.00037219,2]
[394746717,1763926247139,-28.43076644,0.00037219,2]
[394746720,1763926247149,-504.55164166,0.00038356,8]
[394746722,1763926247158,-500.0,0.00038356,8]
[394746724,1763926247168,-500.0,0.00038356,8]
[394746725,1763926247177,-500.0,0.00038356,8]
[394746728,1763926247186,-508.3,0.00038356,8]
[394746730,1763926247196,-500.0,0.00038356,8]
[394746731,1763926247206,-500.0,0.00038356,8]
[394746734,1763926247215,-500.0,0.00038356,8]
[394746736,1763926247225,-500.0,0.00038356,8]
[394746737,1763926247234,-502.56,0.00038356,8]
[394746739,1763926247243,-7307.41,0.00038356,8]
[394746741,1763926247252,-500.0,0.00038356,8]
[394746743,1763926247261,-500.0,0.00038356,8]
[394746745,1763926247271,-500.0,0.00038356,8]
[394746747,1763926247280,-147.8875919,0.00038356,8]
[394746750,1763926247292,-352.1124081,0.00038356,8]
[394746751,1763926247301,-257.74459951,0.00038356,8]
[394746752,1763926247315,-242.25540049,0.00038356,8]
[394746753,1763926247324,-282.85962934,0.00038356,8]
[394746754,1763926247334,-537.71,0.00038356,8]
[394746755,1763926247343,-500.0,0.00038356,8]
[394746756,1763926247353,-150.9138945,0.00038356,8]
[394746757,1763926247364,-349.0861055,0.00038356,8]
[394746758,1763926247373,-70.73309434,0.00038356,8]
[394746759,1763926247385,-353.627579,0.00038356,8]
[394746760,1763926247396,-227.18932666,0.00038356,8]
[394746761,1763926247406,-500.0,0.00038356,8]
[394746762,1763926247419,-500.0,0.00038356,8]
[394746763,1763926247428,-500.0,0.00038356,8]
[394746764,1763926247437,-500.0,0.00038356,8]
[394746765,1763926247447,-500.0,0.00038356,8]
[394746766,1763926247458,-500.0,0.00038356,8]
[394746767,1763926247467,-648.82877844,0.00038356,8]
[394746768,1763926247477,-500.0,0.00038356,8]
[394746769,1763926247488,-500.0,0.00038356,8]
[394746770,1763926247497,-500.0,0.00038356,8]
[394746771,1763926247507,-500.0,0.00038356,8]
[394746772,1763926247516,-500.0,0.00038356,8]
[394746773,1763926247525,-500.0,0.00038356,8]
[394746774,1763926247535,-500.0,0.00038356,8]
[394746775,1763926247544,-307.42728316,0.00038356,8]
[394746776,1763926247576,-192.57271684,0.00038356,8]
[394746777,1763926247586,-500.0,0.00038356,8]
[394746778,1763926247595,-500.0,0.00038356,8]
[394746779,1763926247604,-500.0,0.00038356,8]
[394746780,1763926247614,-665.18,0.00038356,8]
[394746781,1763926247623,-505.93,0.00038356,8]
[394746782,1763926247632,-500.0,0.00038356,8]
[394746783,1763926247641,-621.76,0.00038356,8]
[394746784,1763926247651,-500.0,0.00038356,8]
[394746785,1763926247660,-500.0,0.00038356,8]
[394746786,1763926247669,-500.0,0.00038356,8]
[394746787,1763926247679,-729.25,0.00038356,8]
[394746788,1763926247688,-500.0,0.00038356,8]
[394746789,1763926247697,-500.0,0.00038356,8]
[394746790,1763926247707,-692.70907823,0.00038356,8]
[394746791,1763926247782,-244.72092177,0.00038356,8]
[394746792,1763926247793,-500.0,0.00038356,8]
[394746793,1763926247803,-500.0,0.00038356,8]
[394746794,1763926247813,-738.56,0.00038356,8]
[394746795,1763926247822,-754.8,0.00038356,8]
[394746796,1763926247833,-1017.35,0.00038356,8]
[394746797,1763926247842,-500.0,0.00038356,8]
[394746798,1763926247853,-169.76579733,0.00038356,8]
[394746799,1763926247939,-638.42420267,0.00038356,8]
[394746800,1763926247949,-500.0,0.00038356,8]
[394746801,1763926247959,-500.0,0.00038356,8]
[394746802,1763926247969,-500.0,0.00038356,8]
[394746803,1763926247979,-500.0,0.00038356,8]
[394746804,1763926247988,-500.0,0.00038356,8]
[394746805,1763926247999,-500.0,0.00038356,8]
[394746806,1763926248009,-1962.57,0.00038356,8]
[394746807,1763926248019,-500.0,0.00038356,8]
[394746808,1763926248027,-883.6,0.00038356,8]